Cogmind - Beta 14 @@@ ROGUE MODE // 2024.08.30 @ 20:04:20 Player: Epsilon 11 Result: Destroyed by G-47 Trooper with Particle Gun Performance ------------- Evolutions (3) 1500 Regions Visited (4) 800 Robots Destroyed (54) 270 Value Destroyed (1357) 1357 Prototype IDs (14) 280 Alien Tech Used (0) 0 Bonus (0) 0 TOTAL SCORE: 4207 Bonus ------- None Cogmind --------- Core Integrity 0/700 Matter 222/300 Energy 99/100 System Corruption 10% Temperature Cool (9) Movement Core (50) Location -7/Factory Parts ------- > --- POWER (1) -------- (None) > --- PROPULSION (4) --- (None) > --- UTILITY (5) ------ Improved Signal Interpreter > --- WEAPON (3) ------- (None) > --- INVENTORY (5) ---- Meta Core Humpback Improved Sensor Array Grenade Launcher Peak State ------------ > --- POWER ------------ Improved Deuterium Engine > --- PROPULSION ------- Wheel Compact Wheel Compact Wheel Compact Wheel > --- UTILITY ---------- Improved Cooling System Improved Sensor Array Improved Signal Interpreter Advanced Targeting Computer Weapon Cycler > --- WEAPON ----------- Improved EM Pulse Cannon Advanced Assault Cannon Advanced Assault Cannon > --- INVENTORY -------- Meta Core Humpback Improved Medium Armor Plating Grenade Launcher [Rating: 39] Favorites ----------- Power Makeshift Power Source Engine Makeshift Power Source Power Core Light Nuclear Core Propulsion Compact Wheel Leg Carbon-fiber Leg Wheel Compact Wheel Utility Scrap Shield Device Improved Cooling System Storage Large Storage Unit Processor Improved Signal Interpreter Protection Scrap Shield Weapon Subdweller Beam Cannon Energy Gun Medium Laser Energy Cannon Subdweller Beam Cannon Ballistic Gun Assault Rifle Ballistic Cannon Advanced Assault Cannon Launcher Grenade Launcher Build | -11 -10 -10 -8 -7 ------- Run | Yrd Mat Sub Mat Fac Slots Evolved 6 | . . . 4 2 Power . | . . . . . Propulsion 2 | . . . 1 1 Utility 3 | . . . 3 . Weapon 1 | . . . . 1 Parts Attached 49 | 6 6 9 15 13 Power 5 | 1 . 1 2 1 Engine 4 | 1 . 1 1 1 Core 1 | . . . 1 . Reactor . | . . . . . Propulsion 15 | 2 2 2 4 5 Treads . | . . . . . Leg 2 | . . . 2 . Wheel 13 | 2 2 2 2 5 Hover . | . . . . . Flight . | . . . . . Utility 16 | 1 2 2 5 6 Device 7 | . . . 3 4 Storage 2 | 1 1 . . . Processor 3 | . . . 2 1 Hackware . | . . . . . Protection 4 | . 1 2 . 1 Artifact . | . . . . . Weapon 13 | 2 2 4 4 1 Energy Gun 5 | 1 1 2 1 . Energy Cannon 2 | . . 1 . 1 Ballistic Gun 2 | 1 . . 1 . Ballistic Cannon 2 | . . . 2 . Launcher 2 | . 1 1 . . Special Weapon . | . . . . . Impact Weapon . | . . . . . Slashing Weapon . | . . . . . Piercing Weapon . | . . . . . Special Melee Weapon . | . . . . . Unidentified Prototypes . | . . . . . Parts Lost 16 | . 1 3 2 10 Power 1 | . . . 1 . Propulsion 7 | . 1 2 . 4 Utility 5 | . . 1 1 3 Weapon 3 | . . . . 3 Highest Loss Streak 10 | . 1 1 2 10 To Critical Strikes . | . . . . . Average Slot Usage (%) 77 | . 90 70 71 86 Engine 11 | . 14 14 7 6 Leg 1 | . . . 5 1 Wheel 20 | . 27 18 12 23 Device 5 | . . . 11 17 Storage 2 | . 14 . . . Processor 3 | . . . 9 13 Protection 6 | . 5 8 7 2 Energy Gun 5 | . 12 5 . . Energy Cannon 7 | . . 11 7 4 Ballistic Gun 3 | . 14 . 3 . Ballistic Cannon 2 | . . . 2 13 Launcher 5 | . 1 10 4 . Peak Build Rating 39 | 6 8 14 27 39 Average Rating 15 | 4 7 10 19 33 On Entrance 10 | . 6 8 14 26 Naked Turns . | . . . . . Heaviest Build 39 | 14 31 34 35 39 Greatest Support 58 | 26 32 32 32 58 Greatest Overweight (x) 11 | . 1 10 11 4 Average Overweight (x) 1 | . . 1 2 . Largest Inventory Capacity 15 | 8 15 15 5 5 Average Capacity 7 | 6 14 5 5 5 Most Carried 11 | 3 10 11 5 5 Average Carried 5 | 1 8 5 3 4 Final Capacity 15 | 8 15 5 5 5 Final Carried 9 | 3 9 5 5 5 Class Distribution -------------------- 61% | Mutant 15% | Subdweller-Mutant 11% | Scavenger-Mutant 6% | Scavenger-Gunner 4% | Scavenger-Skirmisher Dominant Class ---------------- Mutant | -10/Materials Mutant | -10/Subcaves Subdweller-Mutant | -8/Materials Scavenger-Gunner | -7/Factory Resources | -11 -10 -10 -8 -7 ----------- Run | Yrd Mat Sub Mat Fac Matter Collected 1258 | 261 151 229 192 425 Remotely . | . . . . . Salvage Created 1814 | 21 485 421 409 478 Parts 105 | 2 27 31 25 20 Haulers Intercepted . | . . . . . Recyclers Shooed 3 | . 1 . 1 1 Parts Field Recycled . | . . . . . Retrieved Matter . | . . . . . Parts Self-Destructed 22 | . . 22 . . Prevented . | . . . . . Kills | -11 -10 -10 -8 -7 ------- Run | Yrd Mat Sub Mat Fac Combat Hostiles Destroyed 38 | . 13 11 7 7 Guns 16 | . 10 4 2 . Cannons 12 | . . 4 2 6 AOE 9 | . 3 3 2 1 Classes Destroyed 11 | 1 5 2 1 2 Worker 6 | . 2 . . 4 Tunneler 2 | 1 . . 1 . Recycler 4 | . 1 . 1 2 Watcher 4 | . 2 . 1 1 Swarmer 13 | . 8 2 2 1 Grunt 12 | . 5 1 3 3 Protector 1 | . . . . 1 Sentry 3 | . . 1 1 1 Hunter 1 | . . . 1 . Programmer 1 | . . . . 1 Subdweller 7 | . . 7 . . Best Kill Streak 5 | 1 5 2 3 5 Combat Bots Only 3 | . 3 2 3 2 Max Kills in Single Turn 2 | 1 2 2 1 1 Gunslinging . | . . . . . Exploded 2 | . 2 2 1 1 Melee . | . . . . . Uniques/NPCs Destroyed . | . . . . . Combat | -11 -10 -10 -8 -7 -------- Run | Yrd Mat Sub Mat Fac Hostile Shots Fired 323 | . 53 28 38 204 Missed 122 | . 20 11 9 82 Damage Taken 2876 | . 340 412 407 1717 Core 936 | . 107 41 81 707 Absorbed by Shields . | . . . . . Redirected to Shielding 15 | . . 15 . . Core Remaining (%) 75 | 100 . 40 85 . Volleys Fired 152 | 1 45 51 23 32 Largest 3 | 2 2 2 2 3 Hottest 165 | 70 70 140 110 165 Shots Fired 273 | 2 89 69 39 74 Gun 132 | 2 85 25 20 . Cannon 127 | . . 37 16 74 Launcher 14 | . 4 7 3 . Special . | . . . . . Kinetic 117 | 1 44 2 17 53 Thermal 121 | 1 41 60 19 . Explosive 14 | . 4 7 3 . Electromagnetic 21 | . . . . 21 Robot Hit Streak 18 | 2 14 10 18 18 Robot Miss Streak 5 | . 5 2 2 4 Penetration Max . | . . . . . Secondary Targets . | . . . . . Shots Hit Robots 158 | 2 50 33 27 46 Core Hits 71 | 1 23 15 11 21 Critical Kills 1 | . . . 1 . Critical Parts Destroyed . | . . . . . Critical Strikes 6 | . 2 . 1 3 Burn 2 | . 2 . . . Meltdown 1 | . . . 1 . Blast 1 | . . . . 1 Corrupt 2 | . . . . 2 Melee Attacks . | . . . . . Impact . | . . . . . Slashing . | . . . . . Piercing . | . . . . . Sneak Attacks . | . . . . . Combat Hostiles . | . . . . . Follow-up Attacks . | . . . . . Damage Inflicted 3405 | 26 822 667 699 1191 Guns 1039 | 26 570 252 191 . Cannons 1793 | . . 245 359 1189 Explosions 571 | . 252 170 149 . Melee . | . . . . . Ramming 2 | . . . . 2 Kinetic 1129 | 13 261 12 128 715 Thermal 1229 | 13 309 485 422 . Explosive 571 | . 252 170 149 . Electromagnetic 474 | . . . . 474 Impact . | . . . . . Slashing . | . . . . . Piercing . | . . . . . Highest Corruption 10 | . . . . 10 Average Corruption 3 | . . . . 3 Corruption Purged . | . . . . . Corruption Blocked . | . . . . . Effects 20 | . . . . 20 Message Errors 6 | . . . . 6 Matter Fused 8 | . . . . 8 Heat Flow Errors 2 | . . . . 2 Data Loss (minor) 2 | . . . . 2 Data Loss (major) 1 | . . . . 1 Misfires 1 | . . . . 1 Overload Shots . | . . . . . Overflow Damage 71 | . . . 26 45 Projectiles 61 | . . . 16 45 Explosions 10 | . . . 10 . Melee . | . . . . . Knockbacks 10 | . . . . 10 Impact . | . . . . . Kinetic 9 | . . . . 9 Secondary 1 | . . . . 1 Self-Inflicted Damage 1 | . . . . 1 Shots . | . . . . . Rammed 1 | . . . . 1 Targets Rammed 1 | . . . . 1 Kicked . | . . . . . Crushed . | . . . . . Highest Temperature 359 | 9 135 99 192 359 Average Temperature 47 | 6 29 21 63 102 Received Heat Transfer 369 | . 81 48 99 141 Siege Activations . | . . . . . Robots Corrupted . | . . . . . Combat Hostiles . | . . . . . Parts Fried 4 | . . . . 4 Impact Corruptions . | . . . . . Robots Melted 1 | . . . 1 . Combat Hostiles 1 | . . . 1 . Parts Melted 3 | . 2 . 1 . Heat Transferred 2714 | 37 1073 975 629 . Parts Sabotaged . | . . . . . Parts Stolen . | . . . . . Parts Stripped . | . . . . . Power Chain Reactions . | . . . . . Alert | -11 -10 -10 -8 -7 ------- Run | Yrd Mat Sub Mat Fac Peak Influence 291 | 5 291 . 132 207 Initial 30 | . 3 . . 30 Average 83 | . 147 . 32 67 Maximum Alert Level 1 | . 1 . . 1 Low Security (%) 94 | 100 86 . 100 97 Level 1 5 | . 13 . . 2 Level 2 . | . . . . . Level 3 . | . . . . . Level 4 . | . . . . . Level 5 . | . . . . . High Security . | . . . . . Max Security . | . . . . . Squads Dispatched 6 | . 2 . 1 3 Investigation 1 | . . . 1 . Extermination 1 | . . . . 1 Reinforcement 4 | . 2 . . 2 Assault . | . . . . . Garrison . | . . . . . Intercept . | . . . . . Searches Triggered . | . . . . . Construction Impeded . | . . . . . Haulers Reinforced 1 | . . . . 1 Active Scanning Responses . | . . . . . Cargo Convoy Interrupts 1 | . . . . 1 Stealth | -11 -10 -10 -8 -7 --------- Run | Yrd Mat Sub Mat Fac Distress Signals 3 | . 1 . . 2 Communications Jammed . | . . . . . Distress Signals . | . . . . . Times Spotted 95 | . 24 19 17 35 Peak Tracking Total 11 | . 5 6 3 11 Tactical Retreats 8 | . 1 2 1 4 Traps | -11 -10 -10 -8 -7 ------- Run | Yrd Mat Sub Mat Fac Traps Triggered 8 | . 1 3 1 3 Indirectly . | . . . . . Trap Hack Attempts . | . . . . . Triggered . | . . . . . Disarmed . | . . . . . Reprogrammed . | . . . . . Reused . | . . . . . Traps Extracted . | . . . . . Installed . | . . . . . Triggered 1 | . . . . 1 Machines | -11 -10 -10 -8 -7 ---------- Run | Yrd Mat Sub Mat Fac Machines Disabled 2 | . 1 1 . . Max in Single Turn 1 | . 1 1 . . Machines Repaired . | . . . . . Machines Dismantled . | . . . . . Machines Sabotaged . | . . . . . Overloaded Fab Kills . | . . . . . Hacking | -11 -10 -10 -8 -7 --------- Run | Yrd Mat Sub Mat Fac Machines Accessed 26 | . 8 2 8 8 Terminals 19 | . 6 . 7 6 Fabricators 1 | . . . . 1 Repair Stations . | . . . . . Recycling Units 3 | . 2 . . 1 Scanalyzers . | . . . . . Garrison Access 1 | . . . 1 . Total Hacks 66 | . 19 4 27 16 Successful 38 | . 13 4 15 6 Failed 28 | . 6 . 12 10 Catastrophic 6 | . 2 . 1 3 Database Lockouts . | . . . . . Manual 40 | . 11 . 20 9 Terminals 55 | . 16 . 26 13 Fabricators 2 | . . . . 2 Repair Stations . | . . . . . Recycling Units 4 | . 3 . . 1 Scanalyzers . | . . . . . Garrison Access 1 | . . . 1 . Terminal Hacks 17 | . 4 4 8 1 Record 3 | . . 3 . . Prototype ID Bank 2 | . 2 . . . Open DSF 1 | . . . . 1 Branch Access Points 1 | . . . 1 . Emergency Access Points 1 | . . . 1 . Terminal Index 1 | . . . 1 . Alert Level 1 | . . . 1 . Unreport Threat 1 | . . . 1 . Locate Traps 2 | . 1 . 1 . Hauler Manifests 2 | . 1 . 1 . Zone Layout 1 | . . . 1 . Derelict Proto ID Bank 1 | . . 1 . . Fabricator Hacks 1 | . . . . 1 Build 1 | . . . . 1 Repair Station Hacks . | . . . . . Recycling Unit Hacks 4 | . 3 . . 1 Report Inventory 3 | . 2 . . 1 Retrieve Components 1 | . 1 . . . Scanalyzer . | . . . . . Garrison Access Hacks . | . . . . . Unauthorized Hacks 16 | . 6 . 7 3 Terminals 16 | . 6 . 7 3 Botnet 14 | . 5 . 6 3 Operators 2 | . 1 . 1 . Fabricators . | . . . . . Repair Stations . | . . . . . Recycling Units . | . . . . . Scanalyzers . | . . . . . Garrison Access . | . . . . . Data Cores Recovered . | . . . . . Used . | . . . . . Hacking Detections 20 | . 6 . 8 6 Full Trace Events 1 | . . . 1 . Feedback Events . | . . . . . Feedback Blocked . | . . . . . Robot Schematics Acquired . | . . . . . Robots Built 4 | . . . . 4 Authchips . | . . . . . Time 67 | . . . . 67 Total Robot Build Rating 16 | . . . . 16 Part Schematics Acquired . | . . . . . Parts Built . | . . . . . Authchips . | . . . . . Time . | . . . . . Total Part Build Rating . | . . . . . Parts Repaired . | . . . . . Time . | . . . . . Parts Recycled . | . . . . . Recycled Matter . | . . . . . Retrieved Matter . | . . . . . Retrieved Components 1 | . 1 . . . Parts Scanalyzed . | . . . . . Part Schematics Acquired . | . . . . . Parts Damaged . | . . . . . Bothacking | -11 -10 -10 -8 -7 ------------ Run | Yrd Mat Sub Mat Fac Used RIF Installer . | . . . . . Robots Hacked . | . . . . . Non-combat . | . . . . . Combat . | . . . . . Robot Hacks Applied . | . . . . . Relay Couplers Released . | . . . . . Fabnet Peak Effective % . | . . . . . Robots Rewired . | . . . . . Allies Hacked . | . . . . . Hacks Repelled . | . . . . . Allies | -11 -10 -10 -8 -7 -------- Run | Yrd Mat Sub Mat Fac Total Allies 4 | . . . . 4 Largest Group 4 | . . . . 4 Highest-Rated Group 48 | . . . . 48 Highest-Rated Ally 12 | . . . . 12 Total Orders . | . . . . . Ally Attacks 5 | . . . . 5 Total Damage 48 | . . . . 48 Kills 1 | . . . . 1 Allies Corrupted . | . . . . . Allies Melted . | . . . . . Intel | -11 -10 -10 -8 -7 ------- Run | Yrd Mat Sub Mat Fac Robot Analysis Total . | . . . . . Derelict Logs Recovered 1 | . . 1 . . Drone Launches . | . . . . . Drone Recoveries . | . . . . . Exploration | -11 -10 -10 -8 -7 ------------- Run | Yrd Mat Sub Mat Fac Turns Passed 5767 | 58 1116 2597 931 1065 Spaces Moved 3610 | 48 698 1602 328 934 Core 620 | 4 . 401 76 139 Treads . | . . . . . Legs 20 | . . . 20 . Wheels 2970 | 44 698 1201 232 795 Hover . | . . . . . Flight . | . . . . . Fastest Speed 50 | 50 90 90 100 50 Average Speed 131 | 90 101 151 226 89 Slowest Speed 600 | 100 115 550 600 250 Overloaded Moves . | . . . . . Propulsion Burnouts . | . . . . . Robots Hopped . | . . . . . Cave-ins Triggered . | . . . . . Exploration Rate (%) 49 | 3 98 88 28 30 Regions Visited 4 Branch Regions 1 Pre-discovered Areas . | . . . . . Known Exits Taken 1 | . . . 1 . Unknown Exits Taken 3 | 1 1 1 . . Scrap Searched 4 | . . 4 . . Spaces Dug 3 | . . 2 1 . Terrain Destroyed 66 | . . 37 18 11 Melee . | . . . . . Projectile 21 | . . 8 2 11 AOE 45 | . . 29 16 . Terrain Rammed . | . . . . . Walls Destroyed . | . . . . . Machines Disabled . | . . . . . Actions | -11 -10 -10 -8 -7 --------- Run | Yrd Mat Sub Mat Fac Total 4360 | 58 1015 1699 474 1114 Wait 499 | . 260 15 99 125 Move 3606 | 47 697 1601 327 934 Hop . | . . . . . Pick Up 20 | 4 6 7 2 1 Fast Attach 31 | 5 2 5 11 8 Attach 5 | 1 1 1 2 . Detach . | . . . . . Swap 13 | . 3 3 2 5 Drop 29 | . 1 12 8 8 Fire 152 | 1 45 51 23 32 Melee . | . . . . . Ram 1 | . . . . 1 Kick . | . . . . . Crush . | . . . . . Escape Stasis . | . . . . . Rewire . | . . . . . Trap . | . . . . . Miscellaneous 4 | . . 4 . . Route ------- -11/Scrapyard -10/Materials (discovered 5 exits: [*Mat x3] / [*Min] / *Sub) -10/Subcaves (discovered 2 exits: *Mat / [*Rec]) -8/Materials (discovered 2 exits: *Fac x2) -7/Factory History --------- Turn | Location | Event 3 | -11/Scrapyard | Discovered new exit (range 15) 59 | -11/Scrapyard | Entered Materials 81 | -10/Materials | Discovered new exit (range 9) 209 | -10/Materials | Discovered new exit (range 16) 304 | -10/Materials | Build established: Mutant 604 | -10/Materials | Discovered new exit (range 4) 823 | -10/Materials | Discovered new exit (range 16) 1167 | -10/Materials | Discovered new exit (range 7) 1175 | -10/Materials | Entered Subcaves 1194 | -10/Subcaves | Disturbed a concealed Subdweller 1230 | -10/Subcaves | Core integrity fell below 50% 1632 | -10/Subcaves | Learned 2 Materials zone layouts 1743 | -10/Subcaves | Shifting Twisted Machinery released Mak. Hacking Suite 1756 | -10/Subcaves | Discovered new exit (range 14) 1839 | -10/Subcaves | Shifting Twisted Machinery released Sub. Beam Cannon 1863 | -10/Subcaves | Build established: Subdweller-Mutant 1885 | -10/Subcaves | Ambushed by Subdwellers from Twisted Machinery 2023 | -10/Subcaves | Discovered new exit (range 15) 2172 | -10/Subcaves | Visited Clippyterm 2182 | -10/Subcaves | Build established: Mutant 2221 | -10/Subcaves | Visited 4L-MR0's lab 2356 | -10/Subcaves | Shifting Twisted Machinery released Sub. Power Source 2356 | -10/Subcaves | Shifting Twisted Machinery released Riot Gun 3482 | -10/Subcaves | Found Meta Core 3772 | -10/Subcaves | Entered Materials 3772 | -8/Materials | Evolved 4 slots: Propulsion x1, Utility x3 3773 | -8/Materials | Identified exit to Factory 4003 | -8/Materials | Build established: Subdweller-Mutant 4628 | -8/Materials | Build established: Scavenger-Mutant 4688 | -8/Materials | Discovered exit to Factory (range 7) 4703 | -8/Materials | Entered Factory 4703 | -7/Factory | Evolved 2 slots: Propulsion x1, Weapon x1 4922 | -7/Factory | Identified exit to DSF 5580 | -7/Factory | Build established: Scavenger-Gunner 5629 | -7/Factory | Cargo convoy interrupted 5730 | -7/Factory | Core integrity fell below 50% 5753 | -7/Factory | Fabricated S-27 Virus? 5753 | -7/Factory | Core integrity fell below 20% 5757 | -7/Factory | Lost 10 parts (4n3u3w) 5760 | -7/Factory | System corruption reached 10% 5768 | -7/Factory | Destroyed by G-47 Trooper with Particle Gun Last Messages --------------- 05702_ Imp. Cooling System severed. 05702_ Weapon Cycler severed. 05702_ Connecting with Terminal... 05702_ Acquired Imp. Cooling System. 05704_ Acquired Weapon Cycler. 05706_ K-01 Serf cleans the Assembly Bed. 05707_ Weapon Cycler destroyed. 05708_ System corrupted: Matter fused (-9). 05710_ K-01 Serf cleans the Assembly Bed. 05718_ Connecting with Terminal... 05726_ Imp. Cooling System destroyed. 05744_ ,B7L#5C,GDE/C5,%OW4RU 5> FABRICATOR: Completed S-27 Virus? Map ----- +----------------------------------------------------+ | "" """ """ #????# #????????????????????? | | " ###### """ #????????????????????? | | "F" """ """ # """ #????????????????????? | | """ """ """ # """ #????????????????????? | | """ """ """ + ! #????????????????????? | | ??# # """ #????????????????????? | | ??# # """ #????????????????????? | | ??# ############ # """ #????????????????????? | | ??#*####??????????# # #????????????????????? | | ### ###???????????# # #????????????????????? | | # [= !#?????#######+#########????????????????????? | | # " #?????# #???????????????????????? | | "T #?????# #???????????????????????? | | # #?????# #???????????????????????? | | # #?????# #???????????????????????? | | #######?????# ##########+####+????????? | | ????????????# # g ????????? | | ????????????# # #??????????? | | ????????????# # #??????????? | | ????????????# + #??????????? | | ????????????# # #??????????? | | ????????????# # g #########?????????? | | ????????????# # # #????????? | | ?????##################### # """"" [#????????? | | ?????# ######## r# ""T"" #????????? | | ?????# /k @ # #????????? | | ?????# ##### + #????????? | | ?????# #???#! """ # """ + ???? | | ?????# #???# """ %# [ """ #????????? | | ?????# #???# """ # """ #????????? | | ?????# #?? u # ?????????? | | ?????+ #? s #########?????????? | | ?????# ] # !! #?????????????????? | | ?????# # k h!/ #?????????????????? | | ?????# # s !/ #?????????????????? | | ?????# # ########?????????????????? | | ????#########/##### #????????????????????????? | | ????# #????????????????????????? | | ????# u #????????????????????????? | | ##### #????????????????????????? | | #????????????????????????? | | ##### #????????????????????????? | | # ###############????????????????????????? | | # # #?????????????????????????? | | # # """" """" #?????????????????????????? | | # # """" """" #?????????????????????????? | | #% # """" """" #?????????????????????????? | | """ + + """" """" #?????????????????????????? | | """ # # """" """" #?????????????????????????? | | """ # # """" """" ########??????????????????? | +----------------------------------------------------+ Best States ------------- Heat Dissipation 61 Energy Generation 16 Energy Capacity 290 Matter Stores 300 Matter Capacity 300 Sight Range 16 Robot Scan Range 15 Terrain Scan Density 10 Armor Coverage 800 Propulsion Shielding 33 Weapon Cycling 15 Evasion (%) 50 Targeting Accuracy 8 Item Schematics ----------------- None Robot Schematics ------------------ None Fabricated ------------ S-27 Virus | x4 | -7/Factory | Preloaded Alien Tech Used ----------------- None Achievements -------------- None Challenges ------------ None Game ------ Seed StructuralControlWell Manual? 0 Play Time 00:53:06 Cumulative 140.7 hours Start 2024.08.30 @ 19:11:57 End 2024.08.30 @ 20:04:20 Sessions 1 Manual Loads 0 Difficulty Rogue Special Mode None Game No. 61 Rogue 18 Adventurer 43 Explorer 0 Win Type - Total 4 Types 2/0/1/0/0/0/0/1/0 Lore% 56 Gallery% 63 Achievement% 58 Wizard Run 0 Options --------- Layout 0 ASCII 0 Keyboard 0 Movement Mouse Keybinds 0 Fullscreen 1 Font 24/Smallcaps Map View 76x50 Zoom Use 0% Tactical HUD 1 Map Filters NONE Filters NONE Steam 1 RUN: 73000fd7-8d49-4346-85c8-cea892f9a286